[Event "Late-Titled-Tuesday-Blitz-April-02-2024"]
[Site "Chess.com"]
[Date "2024.04.02"]
[Round "6"]
[White "JaackCamel"]
[Black "maracayo"]
[Result "1-0"]
[WhiteElo "2213"]
[BlackElo "2375"]
[TimeControl "180+1"]
[EndTime "15:03:46 PDT"]
[Termination "JaackCamel won on time"]

1. d4 {[%clk 0:03:00.9]} 1... d6 {[%clk 0:02:59]} 2. Nf3 {[%clk 0:02:59.7]} 2...
Nf6 {[%clk 0:02:58.2]} 3. c4 {[%clk 0:02:59]} 3... Nbd7 {[%clk 0:02:55.9]} 4.
Nc3 {[%clk 0:02:58.6]} 4... e5 {[%clk 0:02:55.3]} 5. e4 {[%clk 0:02:58.4]} 5...
Be7 {[%clk 0:02:54.8]} 6. Be2 {[%clk 0:02:57.8]} 6... O-O {[%clk 0:02:54.6]} 7.
Be3 {[%clk 0:02:57.6]} 7... Re8 {[%clk 0:02:51.2]} 8. d5 {[%clk 0:02:57.2]} 8...
Ng4 {[%clk 0:02:48.2]} 9. Bd2 {[%clk 0:02:55]} 9... Nf8 {[%clk 0:02:45.9]} 10.
h3 {[%clk 0:02:51.6]} 10... Nf6 {[%clk 0:02:44.9]} 11. Be3 {[%clk 0:02:48.5]}
11... Ng6 {[%clk 0:02:42.7]} 12. g3 {[%clk 0:02:46.7]} 12... a6 {[%clk 0:02:11]}
13. Nd2 {[%clk 0:02:44.7]} 13... Bd7 {[%clk 0:02:07.5]} 14. Kf1 {[%clk
0:02:44.1]} 14... Rb8 {[%clk 0:01:59.1]} 15. Kg2 {[%clk 0:02:43.8]} 15... b5
{[%clk 0:01:57.9]} 16. b4 {[%clk 0:01:57.1]} 16... bxc4 {[%clk 0:01:53.2]} 17.
Rb1 {[%clk 0:01:51.9]} 17... c6 {[%clk 0:01:49.4]} 18. Bxc4 {[%clk 0:01:44.8]}
18... cxd5 {[%clk 0:01:47.4]} 19. Nxd5 {[%clk 0:01:34.2]} 19... Nxd5 {[%clk
0:01:42]} 20. Bxd5 {[%clk 0:01:33.7]} 20... Bg5 {[%clk 0:01:01.5]} 21. Nc4
{[%clk 0:01:27.7]} 21... Bxe3 {[%clk 0:00:47.6]} 22. Nxe3 {[%clk 0:01:27.1]}
22... a5 {[%clk 0:00:32.3]} 23. a3 {[%clk 0:01:10.7]} 23... axb4 {[%clk
0:00:30.2]} 24. axb4 {[%clk 0:01:10.2]} 24... Be6 {[%clk 0:00:20]} 25. Qb3
{[%clk 0:01:08.9]} 25... Qf6 {[%clk 0:00:14.7]} 26. Rhd1 {[%clk 0:00:57.9]}
26... h5 {[%clk 0:00:13]} 27. h4 {[%clk 0:00:53.5]} 27... Red8 {[%clk
0:00:06.2]} 28. b5 {[%clk 0:00:52.6]} 28... Nf4+ {[%clk 0:00:02.5]} 29. gxf4
{[%clk 0:00:48.1]} 29... exf4 {[%clk 0:00:03.4]} 30. Nf5 {[%clk 0:00:44.1]}
30... Bxf5 {[%clk 0:00:02.7]} 31. exf5 {[%clk 0:00:43.4]} 31... Qxh4 {[%clk
0:00:03.6]} 32. Qh3 {[%clk 0:00:35.2]} 32... Qg5+ {[%clk 0:00:02.1]} 33. Kh2
{[%clk 0:00:32.3]} 33... Re8 {[%clk 0:00:01.6]} 34. Rg1 {[%clk 0:00:31.4]} 34...
Qh6 {[%clk 0:00:01.4]} 35. Bc6 {[%clk 0:00:25]} 1-0

[Event "Late-Titled-Tuesday-Blitz-April-02-2024"]
[Site "Chess.com"]
[Date "2024.04.02"]
[Round "6"]
[White "karinachess1"]
[Black "Veleamater"]
[Result "1-0"]
[WhiteElo "2618"]
[BlackElo "2419"]
[TimeControl "180+1"]
[EndTime "15:03:47 PDT"]
[Termination "karinachess1 won on time"]

1. d4 {[%clk 0:03:00.9]} 1... Nf6 {[%clk 0:02:56.4]} 2. c4 {[%clk 0:02:58.7]}
2... g6 {[%clk 0:02:56.8]} 3. Nf3 {[%clk 0:02:58.9]} 3... Bg7 {[%clk 0:02:57.3]}
4. g3 {[%clk 0:02:59.7]} 4... O-O {[%clk 0:02:57.9]} 5. Bg2 {[%clk 0:03:00.4]}
5... d6 {[%clk 0:02:58.6]} 6. O-O {[%clk 0:03:00.6]} 6... c5 {[%clk 0:02:59.4]}
7. Nc3 {[%clk 0:02:59.4]} 7... Nc6 {[%clk 0:02:59.4]} 8. d5 {[%clk 0:02:54.5]}
8... Na5 {[%clk 0:02:59.5]} 9. Qd3 {[%clk 0:02:54.4]} 9... a6 {[%clk 0:02:59.8]}
10. Rb1 {[%clk 0:02:42.7]} 10... Rb8 {[%clk 0:02:53.5]} 11. b3 {[%clk
0:02:37.4]} 11... b5 {[%clk 0:02:49.5]} 12. e4 {[%clk 0:02:34.3]} 12... e5
{[%clk 0:02:43.3]} 13. Bd2 {[%clk 0:02:05.3]} 13... Ne8 {[%clk 0:02:40.7]} 14.
Nh4 {[%clk 0:01:54.3]} 14... f5 {[%clk 0:02:38.8]} 15. exf5 {[%clk 0:01:26.5]}
15... gxf5 {[%clk 0:02:38.8]} 16. Bh3 {[%clk 0:01:22.9]} 16... e4 {[%clk
0:02:25.5]} 17. Qe2 {[%clk 0:01:22.5]} 17... Bd7 {[%clk 0:01:39.1]} 18. cxb5
{[%clk 0:01:18.9]} 18... axb5 {[%clk 0:01:36.6]} 19. Qh5 {[%clk 0:01:09.2]}
19... Nf6 {[%clk 0:01:21]} 20. Qg5 {[%clk 0:00:49.1]} 20... h6 {[%clk
0:01:03.9]} 21. Qf4 {[%clk 0:00:35.5]} 21... Nb7 {[%clk 0:00:30.5]} 22. Bxf5
{[%clk 0:00:24.4]} 22... Ne8 {[%clk 0:00:17.9]} 23. Nxe4 {[%clk 0:00:18.7]}
23... Bxf5 {[%clk 0:00:08.3]} 24. Nxf5 {[%clk 0:00:18.7]} 24... Kh7 {[%clk
0:00:07.2]} 25. Qg4 {[%clk 0:00:15.1]} 25... Qd7 {[%clk 0:00:06.9]} 26. Nxh6
{[%clk 0:00:07]} 26... Qxg4 {[%clk 0:00:05.3]} 27. Nxg4 {[%clk 0:00:07.9]} 27...
Ra8 {[%clk 0:00:05.1]} 28. Ng5+ {[%clk 0:00:05.5]} 28... Kg6 {[%clk 0:00:04]}
29. Ne6 {[%clk 0:00:05.6]} 1-0

[Event "Late-Titled-Tuesday-Blitz-April-02-2024"]
[Site "Chess.com"]
[Date "2024.04.02"]
[Round "6"]
[White "FREZZY23"]
[Black "Bykov_Egor"]
[Result "1-0"]
[WhiteElo "2429"]
[BlackElo "2591"]
[TimeControl "180+1"]
[EndTime "15:03:51 PDT"]
[Termination "FREZZY23 won on time"]

1. Nf3 {[%clk 0:02:58.6]} 1... Nf6 {[%clk 0:02:58.7]} 2. g3 {[%clk 0:02:58.1]}
2... g6 {[%clk 0:02:59.3]} 3. Bg2 {[%clk 0:02:57.4]} 3... Bg7 {[%clk 0:03:00.1]}
4. O-O {[%clk 0:02:58.3]} 4... O-O {[%clk 0:03:00.4]} 5. d4 {[%clk 0:02:59]}
5... d6 {[%clk 0:03:00.8]} 6. c4 {[%clk 0:02:59.1]} 6... Nc6 {[%clk 0:02:50]} 7.
Nc3 {[%clk 0:02:58]} 7... a6 {[%clk 0:02:48.1]} 8. b3 {[%clk 0:02:51.5]} 8...
Rb8 {[%clk 0:02:45]} 9. Bb2 {[%clk 0:02:49.6]} 9... b5 {[%clk 0:02:44.4]} 10.
cxb5 {[%clk 0:02:39.1]} 10... axb5 {[%clk 0:02:45.3]} 11. Rc1 {[%clk 0:02:39.1]}
11... Bd7 {[%clk 0:02:43.6]} 12. Qd3 {[%clk 0:02:32.7]} 12... Nb4 {[%clk
0:02:23.7]} 13. Qd2 {[%clk 0:02:30.7]} 13... c5 {[%clk 0:02:15.3]} 14. Rfd1
{[%clk 0:02:27.4]} 14... c4 {[%clk 0:02:11.2]} 15. d5 {[%clk 0:01:58.7]} 15...
Na6 {[%clk 0:01:52.4]} 16. Nd4 {[%clk 0:01:56.6]} 16... b4 {[%clk 0:01:48.8]}
17. Nb1 {[%clk 0:01:39.9]} 17... c3 {[%clk 0:01:47.2]} 18. Nxc3 {[%clk
0:01:38.8]} 18... bxc3 {[%clk 0:01:48.1]} 19. Bxc3 {[%clk 0:01:39.5]} 19... Nc5
{[%clk 0:01:43.4]} 20. Nc6 {[%clk 0:01:39.5]} 20... Bxc6 {[%clk 0:01:40.2]} 21.
dxc6 {[%clk 0:01:40.4]} 21... Qc7 {[%clk 0:00:59.9]} 22. Ba5 {[%clk 0:01:29.1]}
22... Qc8 {[%clk 0:00:59.1]} 23. b4 {[%clk 0:01:26.4]} 23... Nce4 {[%clk
0:00:54.5]} 24. Qd3 {[%clk 0:01:21.9]} 24... d5 {[%clk 0:00:54.1]} 25. b5 {[%clk
0:01:10.7]} 25... Ra8 {[%clk 0:00:37.5]} 26. Bb4 {[%clk 0:01:08]} 26... Qc7
{[%clk 0:00:33.6]} 27. Qb3 {[%clk 0:01:00.4]} 27... Rfb8 {[%clk 0:00:31.7]} 28.
a4 {[%clk 0:00:59.9]} 28... Qa7 {[%clk 0:00:26.5]} 29. e3 {[%clk 0:00:50.3]}
29... Qxa4 {[%clk 0:00:15.7]} 30. Qxa4 {[%clk 0:00:50]} 30... Rxa4 {[%clk
0:00:16.6]} 31. Bxe7 {[%clk 0:00:50.6]} 31... Ne8 {[%clk 0:00:08.8]} 32. Bxe4
{[%clk 0:00:38.9]} 32... dxe4 {[%clk 0:00:09]} 33. Rd8 {[%clk 0:00:39.2]} 33...
Rxd8 {[%clk 0:00:04.2]} 34. Bxd8 {[%clk 0:00:40.1]} 34... Rb4 {[%clk 0:00:04]}
35. b6 {[%clk 0:00:39.6]} 35... Be5 {[%clk 0:00:02.5]} 36. c7 {[%clk 0:00:34.3]}
36... Nd6 {[%clk 0:00:02]} 37. Be7 {[%clk 0:00:27.3]} 1-0

[Event "Late-Titled-Tuesday-Blitz-April-02-2024"]
[Site "Chess.com"]
[Date "2024.04.02"]
[Round "6"]
[White "Eagle_2019"]
[Black "MaestroCheck"]
[Result "1/2-1/2"]
[WhiteElo "2866"]
[BlackElo "2581"]
[TimeControl "180+1"]
[EndTime "15:03:53 PDT"]
[Termination "Game drawn by agreement"]

1. d4 {[%clk 0:03:00.9]} 1... d5 {[%clk 0:02:58.5]} 2. Nf3 {[%clk 0:02:59.1]}
2... Nf6 {[%clk 0:02:57.4]} 3. c4 {[%clk 0:02:58.7]} 3... c6 {[%clk 0:02:57.9]}
4. Nc3 {[%clk 0:02:58.3]} 4... e6 {[%clk 0:02:57.5]} 5. e3 {[%clk 0:02:57.4]}
5... Nbd7 {[%clk 0:02:54.3]} 6. Be2 {[%clk 0:02:57.2]} 6... Bd6 {[%clk
0:02:51.3]} 7. O-O {[%clk 0:02:56.9]} 7... O-O {[%clk 0:02:48]} 8. b3 {[%clk
0:02:56.1]} 8... e5 {[%clk 0:02:35.1]} 9. dxe5 {[%clk 0:02:43.5]} 9... Nxe5
{[%clk 0:02:33.8]} 10. cxd5 {[%clk 0:02:40.6]} 10... Nxf3+ {[%clk 0:02:31.9]}
11. Bxf3 {[%clk 0:02:38.9]} 11... Be5 {[%clk 0:02:32.1]} 12. Bb2 {[%clk
0:02:38.2]} 12... Nxd5 {[%clk 0:02:32.7]} 13. Bxd5 {[%clk 0:02:31.5]} 13... cxd5
{[%clk 0:02:32.8]} 14. Na4 {[%clk 0:02:31.5]} 14... f6 {[%clk 0:02:19.7]} 15.
Rc1 {[%clk 0:02:17.9]} 15... b6 {[%clk 0:01:51.6]} 16. Bd4 {[%clk 0:02:14.5]}
16... Be6 {[%clk 0:01:40.5]} 17. Nc3 {[%clk 0:02:12.3]} 17... Re8 {[%clk
0:01:37]} 18. Nb5 {[%clk 0:02:09.8]} 18... Qd7 {[%clk 0:01:31.4]} 19. Bxe5
{[%clk 0:02:06.1]} 19... Qxb5 {[%clk 0:01:30.7]} 20. Bd4 {[%clk 0:02:04.6]}
20... Rac8 {[%clk 0:01:28.9]} 21. Qf3 {[%clk 0:02:02.8]} 21... Rxc1 {[%clk
0:01:24.8]} 22. Rxc1 {[%clk 0:02:03.7]} 22... Rc8 {[%clk 0:01:25.2]} 23. Rxc8+
{[%clk 0:01:46.5]} 23... Bxc8 {[%clk 0:01:22.9]} 24. h4 {[%clk 0:01:46.8]} 24...
Be6 {[%clk 0:01:14.5]} 25. Qg3 {[%clk 0:01:43]} 25... Kf7 {[%clk 0:01:09.6]} 26.
h5 {[%clk 0:01:41.2]} 26... Qe2 {[%clk 0:00:44.8]} 27. Qc7+ {[%clk 0:01:26.2]}
27... Kg8 {[%clk 0:00:44.3]} 28. Qb8+ {[%clk 0:01:25.9]} 28... Kf7 {[%clk
0:00:42.3]} 29. Qxa7+ {[%clk 0:01:25.6]} 29... Kg8 {[%clk 0:00:38]} 30. Qb8+
{[%clk 0:01:23.3]} 30... Kf7 {[%clk 0:00:37.8]} 31. Qc7+ {[%clk 0:01:22.3]}
31... Kg8 {[%clk 0:00:36]} 32. Qc1 {[%clk 0:00:55.5]} 32... Qxa2 {[%clk
0:00:35.7]} 33. h6 {[%clk 0:00:54.8]} 33... Qxb3 {[%clk 0:00:34.5]} 34. hxg7
{[%clk 0:00:51.7]} 34... Kxg7 {[%clk 0:00:35.4]} 35. Qc7+ {[%clk 0:00:50.7]}
35... Kg6 {[%clk 0:00:33.9]} 36. Qe7 {[%clk 0:00:48.3]} 36... Qb1+ {[%clk
0:00:33.2]} 37. Kh2 {[%clk 0:00:48.3]} 37... Qf5 {[%clk 0:00:33]} 38. f3 {[%clk
0:00:48.8]} 38... Bf7 {[%clk 0:00:27.1]} 39. Bxb6 {[%clk 0:00:41.5]} 39... Qe5+
{[%clk 0:00:25.7]} 40. Qxe5 {[%clk 0:00:40.1]} 40... fxe5 {[%clk 0:00:26.6]} 41.
g4 {[%clk 0:00:40]} 41... h5 {[%clk 0:00:24.3]} 42. gxh5+ {[%clk 0:00:40]} 42...
Kxh5 {[%clk 0:00:25.2]} 43. Bc7 {[%clk 0:00:40.2]} 43... e4 {[%clk 0:00:24.8]}
44. f4 {[%clk 0:00:40.1]} 44... Kg6 {[%clk 0:00:24.9]} 45. Be5 {[%clk 0:00:40]}
45... Kf5 {[%clk 0:00:25.2]} 46. Bd4 {[%clk 0:00:40.4]} 46... Be6 {[%clk
0:00:25.5]} 47. Kg2 {[%clk 0:00:40.7]} 47... Bd7 {[%clk 0:00:26.1]} 48. Kg3
{[%clk 0:00:41.1]} 48... Bb5 {[%clk 0:00:26.7]} 49. Kh4 {[%clk 0:00:41.5]} 49...
Bc4 {[%clk 0:00:27.2]} 50. Kh5 {[%clk 0:00:41.9]} 50... Bb3 {[%clk 0:00:27.8]}
51. Kh6 {[%clk 0:00:42.4]} 51... Bc4 {[%clk 0:00:28.7]} 52. Kg7 {[%clk
0:00:42.3]} 52... Bb3 {[%clk 0:00:29.3]} 53. Kf7 {[%clk 0:00:43.2]} 53... Bc4
{[%clk 0:00:30.2]} 54. Ke7 {[%clk 0:00:44]} 54... Bb3 {[%clk 0:00:30.2]} 55. Kd6
{[%clk 0:00:44.9]} 55... Bc4 {[%clk 0:00:30.9]} 56. Kc5 {[%clk 0:00:45.8]} 56...
Ba2 {[%clk 0:00:31.1]} 57. Kb4 {[%clk 0:00:46.7]} 57... Bc4 {[%clk 0:00:31.5]}
58. Kc5 {[%clk 0:00:47.6]} 58... Ke6 {[%clk 0:00:31.8]} 59. Kc6 {[%clk
0:00:47.7]} 59... Kf5 {[%clk 0:00:32.4]} 60. Kd6 {[%clk 0:00:47.7]} 60... Bb3
{[%clk 0:00:32]} 1/2-1/2

[Event "Late-Titled-Tuesday-Blitz-April-02-2024"]
[Site "Chess.com"]
[Date "2024.04.02"]
[Round "6"]
[White "KVAIDAN"]
[Black "VanRommel28"]
[Result "1-0"]
[WhiteElo "2335"]
[BlackElo "2552"]
[TimeControl "180+1"]
[EndTime "15:03:54 PDT"]
[Termination "KVAIDAN won by resignation"]

1. f4 {[%clk 0:02:15.4]} 1... g6 {[%clk 0:02:54]} 2. Nf3 {[%clk 0:02:15.6]} 2...
Bg7 {[%clk 0:02:54.6]} 3. d3 {[%clk 0:02:16.1]} 3... d6 {[%clk 0:02:54.8]} 4. e4
{[%clk 0:02:16.5]} 4... e5 {[%clk 0:02:54.2]} 5. Be2 {[%clk 0:02:16.8]} 5... Nc6
{[%clk 0:02:53.8]} 6. O-O {[%clk 0:02:17.2]} 6... Nge7 {[%clk 0:02:50.4]} 7. Nc3
{[%clk 0:02:16.2]} 7... O-O {[%clk 0:02:50.4]} 8. Qe1 {[%clk 0:02:16.7]} 8... f5
{[%clk 0:02:50.3]} 9. Qh4 {[%clk 0:02:17]} 9... h6 {[%clk 0:02:49.5]} 10. fxe5
{[%clk 0:02:14.8]} 10... g5 {[%clk 0:02:48.7]} 11. Bxg5 {[%clk 0:02:10.6]} 11...
hxg5 {[%clk 0:02:17.9]} 12. Nxg5 {[%clk 0:02:09.8]} 12... Re8 {[%clk 0:02:16.9]}
13. Qh7+ {[%clk 0:01:54.7]} 13... Kf8 {[%clk 0:02:13.7]} 14. e6 {[%clk
0:01:45.3]} 14... Nd4 {[%clk 0:01:57.7]} 15. Bh5 {[%clk 0:01:35.9]} 15... Nxe6
{[%clk 0:01:51.9]} 16. Nxe6+ {[%clk 0:01:22.3]} 16... Bxe6 {[%clk 0:01:52.8]}
17. exf5 {[%clk 0:01:20.9]} 17... Bg8 {[%clk 0:01:48.9]} 18. f6 {[%clk
0:01:05.2]} 18... Bxh7 {[%clk 0:01:45]} 19. fxe7+ {[%clk 0:01:05.3]} 19... Kg8
{[%clk 0:01:06.4]} 20. exd8=Q {[%clk 0:01:02.7]} 20... Rexd8 {[%clk 0:01:07]}
21. Nd5 {[%clk 0:01:00.2]} 21... c6 {[%clk 0:01:03.8]} 22. Ne7+ {[%clk
0:00:53.4]} 22... Kh8 {[%clk 0:01:02.7]} 23. Ng6+ {[%clk 0:00:47.8]} 23... Bxg6
{[%clk 0:01:02.6]} 24. Bxg6 {[%clk 0:00:46.9]} 24... Bxb2 {[%clk 0:01:03.2]} 25.
Rab1 {[%clk 0:00:46.3]} 25... Bd4+ {[%clk 0:01:03.6]} 26. Kh1 {[%clk 0:00:46.8]}
26... Rd7 {[%clk 0:01:03.8]} 27. h4 {[%clk 0:00:41.4]} 27... Kg7 {[%clk
0:01:00.2]} 28. h5 {[%clk 0:00:41.4]} 28... Rf8 {[%clk 0:00:43.2]} 29. g4 {[%clk
0:00:39.9]} 29... Bf6 {[%clk 0:00:31]} 30. Kg2 {[%clk 0:00:38.9]} 30... b5
{[%clk 0:00:29.4]} 31. Rf2 {[%clk 0:00:38.5]} 31... a5 {[%clk 0:00:28.1]} 32.
Rbf1 {[%clk 0:00:38.7]} 32... Rdd8 {[%clk 0:00:24.2]} 33. Rf5 {[%clk 0:00:36.5]}
33... Be7 {[%clk 0:00:21.2]} 34. Rf7+ {[%clk 0:00:33.5]} 34... Kh6 {[%clk
0:00:14.7]} 35. Rxe7 {[%clk 0:00:31.2]} 35... Kg5 {[%clk 0:00:15.3]} 36. Rxf8
{[%clk 0:00:28.4]} 36... Rxf8 {[%clk 0:00:16.2]} 37. Re6 {[%clk 0:00:28.8]}
37... d5 {[%clk 0:00:15.3]} 38. Bf5 {[%clk 0:00:26.5]} 38... c5 {[%clk
0:00:14.6]} 39. Re5 {[%clk 0:00:26.2]} 39... Kf4 {[%clk 0:00:12.9]} 40. Rxd5
{[%clk 0:00:25.3]} 40... c4 {[%clk 0:00:13.8]} 41. dxc4 {[%clk 0:00:25.3]} 41...
Re8 {[%clk 0:00:14.1]} 42. cxb5 {[%clk 0:00:24.1]} 42... Re2+ {[%clk 0:00:14.3]}
43. Kf1 {[%clk 0:00:24.4]} 43... Rd2 {[%clk 0:00:13.4]} 44. Rxd2 {[%clk
0:00:23.4]} 1-0

[Event "Late-Titled-Tuesday-Blitz-April-02-2024"]
[Site "Chess.com"]
[Date "2024.04.02"]
[Round "6"]
[White "egnfanclub"]
[Black "akanga001"]
[Result "1-0"]
[WhiteElo "2368"]
[BlackElo "2136"]
[TimeControl "180+1"]
[EndTime "15:04:00 PDT"]
[Termination "egnfanclub won on time"]

1. e4 {[%clk 0:03:00.9]} 1... e6 {[%clk 0:02:54.9]} 2. d4 {[%clk 0:03:00.2]}
2... d5 {[%clk 0:02:54.2]} 3. Nc3 {[%clk 0:03:00.1]} 3... Nf6 {[%clk 0:02:53.7]}
4. e5 {[%clk 0:03:00.1]} 4... Nfd7 {[%clk 0:02:54.5]} 5. Nf3 {[%clk 0:02:59.8]}
5... c5 {[%clk 0:02:49.2]} 6. dxc5 {[%clk 0:03:00.7]} 6... Bxc5 {[%clk
0:02:48.3]} 7. Bd3 {[%clk 0:03:00.4]} 7... Nc6 {[%clk 0:02:48]} 8. Bf4 {[%clk
0:03:00.3]} 8... h6 {[%clk 0:02:41.2]} 9. Bg3 {[%clk 0:03:00.2]} 9... g5 {[%clk
0:02:40.4]} 10. O-O {[%clk 0:02:49.2]} 10... a6 {[%clk 0:02:40.5]} 11. Qe2
{[%clk 0:02:40]} 11... b5 {[%clk 0:02:34.9]} 12. a3 {[%clk 0:02:39.3]} 12... Ke7
{[%clk 0:02:26.9]} 13. Rad1 {[%clk 0:02:31.5]} 13... Bb6 {[%clk 0:02:05.2]} 14.
Rfe1 {[%clk 0:02:24]} 14... Nc5 {[%clk 0:02:05.2]} 15. Be4 {[%clk 0:01:53.3]}
15... Nxe4 {[%clk 0:01:58]} 16. Nxe4 {[%clk 0:01:52.9]} 16... Kd7 {[%clk
0:01:43]} 17. Nf6+ {[%clk 0:01:45.1]} 17... Kc7 {[%clk 0:01:41.4]} 18. a4 {[%clk
0:01:40.7]} 18... b4 {[%clk 0:01:35.6]} 19. c4 {[%clk 0:01:39.7]} 19... d4
{[%clk 0:01:33.3]} 20. c5 {[%clk 0:01:28.4]} 20... Bxc5 {[%clk 0:01:25.9]} 21.
Qc2 {[%clk 0:01:28]} 21... Bb6 {[%clk 0:01:14.6]} 22. a5 {[%clk 0:01:07.8]}
22... Ba7 {[%clk 0:01:05.2]} 23. Rc1 {[%clk 0:01:07.1]} 23... Bb7 {[%clk
0:01:04.7]} 24. Nd2 {[%clk 0:00:55.6]} 24... Rc8 {[%clk 0:01:04.3]} 25. Nde4
{[%clk 0:00:53]} 25... Kb8 {[%clk 0:01:03.4]} 26. Nd6 {[%clk 0:00:53.4]} 26...
Rc7 {[%clk 0:01:02.9]} 27. Qd3 {[%clk 0:00:47.7]} 27... Ka8 {[%clk 0:00:50.6]}
28. Nxb7 {[%clk 0:00:44.1]} 28... Kxb7 {[%clk 0:00:48.2]} 29. Qc4 {[%clk
0:00:37.6]} 29... d3 {[%clk 0:00:40.4]} 30. Red1 {[%clk 0:00:37.4]} 30... Qd4
{[%clk 0:00:37.8]} 31. Ne4 {[%clk 0:00:23.2]} 31... Rd8 {[%clk 0:00:15.8]} 32.
Nd6+ {[%clk 0:00:23]} 32... Ka8 {[%clk 0:00:12.7]} 33. Rxd3 {[%clk 0:00:22.8]}
33... Qxc4 {[%clk 0:00:07.5]} 34. Rxc4 {[%clk 0:00:23.7]} 34... Kb8 {[%clk
0:00:03.8]} 35. Kf1 {[%clk 0:00:22.9]} 35... Nxa5 {[%clk 0:00:01.1]} 36. Rxb4+
{[%clk 0:00:20.2]} 1-0

[Event "Late-Titled-Tuesday-Blitz-April-02-2024"]
[Site "Chess.com"]
[Date "2024.04.02"]
[Round "6"]
[White "cthake"]
[Black "teresin05"]
[Result "0-1"]
[WhiteElo "1822"]
[BlackElo "2277"]
[TimeControl "180+1"]
[EndTime "15:04:01 PDT"]
[Termination "teresin05 won on time"]

1. e4 {[%clk 0:03:00.9]} 1... c5 {[%clk 0:02:03.5]} 2. Nf3 {[%clk 0:02:58.6]}
2... Nc6 {[%clk 0:02:02]} 3. d4 {[%clk 0:02:58.5]} 3... cxd4 {[%clk 0:02:02.9]}
4. Nxd4 {[%clk 0:02:58.8]} 4... Nf6 {[%clk 0:02:03.4]} 5. Nc3 {[%clk 0:02:58.5]}
5... d6 {[%clk 0:02:03.8]} 6. Bg5 {[%clk 0:02:50.3]} 6... e6 {[%clk 0:02:03.1]}
7. f4 {[%clk 0:02:49.4]} 7... h6 {[%clk 0:01:59.6]} 8. Bxf6 {[%clk 0:02:47.6]}
8... Qxf6 {[%clk 0:01:59.8]} 9. Nxc6 {[%clk 0:02:42]} 9... bxc6 {[%clk
0:01:59.3]} 10. Qd2 {[%clk 0:02:38.4]} 10... d5 {[%clk 0:01:56]} 11. e5 {[%clk
0:02:35]} 11... Qd8 {[%clk 0:01:55.2]} 12. Be2 {[%clk 0:02:28.7]} 12... Qb6
{[%clk 0:01:51.5]} 13. Na4 {[%clk 0:02:16.4]} 13... Qb7 {[%clk 0:01:38.8]} 14.
O-O {[%clk 0:02:11.7]} 14... Bd7 {[%clk 0:01:34.9]} 15. Nc3 {[%clk 0:01:41.2]}
15... Qxb2 {[%clk 0:01:31.9]} 16. Rab1 {[%clk 0:01:41.5]} 16... Qa3 {[%clk
0:01:32]} 17. Rb3 {[%clk 0:01:39.2]} 17... Qc5+ {[%clk 0:01:32]} 18. Kh1 {[%clk
0:01:38.1]} 18... Be7 {[%clk 0:01:32.6]} 19. Rb7 {[%clk 0:01:31.3]} 19... Bc8
{[%clk 0:01:32.3]} 20. Rb3 {[%clk 0:01:22]} 20... O-O {[%clk 0:01:29.9]} 21. Na4
{[%clk 0:01:06.9]} 21... Qa3 {[%clk 0:01:03.8]} 22. Rxa3 {[%clk 0:01:06.1]}
22... Bxa3 {[%clk 0:01:04.7]} 23. Qc3 {[%clk 0:01:03.3]} 23... Be7 {[%clk
0:01:03.2]} 24. Qxc6 {[%clk 0:01:02.6]} 24... Rb8 {[%clk 0:01:01.9]} 25. Ba6
{[%clk 0:00:48.7]} 25... Bxa6 {[%clk 0:00:54.7]} 26. Qxa6 {[%clk 0:00:48.9]}
26... Rbc8 {[%clk 0:00:53.2]} 27. c3 {[%clk 0:00:46.5]} 27... Rc7 {[%clk
0:00:51.3]} 28. g4 {[%clk 0:00:42.4]} 28... Rb8 {[%clk 0:00:51.4]} 29. Qd3
{[%clk 0:00:35.9]} 29... Rc4 {[%clk 0:00:49.7]} 30. Qc2 {[%clk 0:00:19.8]} 30...
d4 {[%clk 0:00:50]} 31. Rb1 {[%clk 0:00:14.1]} 31... Rbc8 {[%clk 0:00:48.1]} 32.
Nb2 {[%clk 0:00:11.4]} 32... Rxc3 {[%clk 0:00:48]} 33. Qd2 {[%clk 0:00:10.9]}
33... Bc5 {[%clk 0:00:35.2]} 34. h4 {[%clk 0:00:09.7]} 34... Rh3+ {[%clk
0:00:31.2]} 35. Kg2 {[%clk 0:00:09.3]} 35... Rxh4 {[%clk 0:00:31.7]} 36. Kg3
{[%clk 0:00:09.2]} 36... g5 {[%clk 0:00:31.5]} 37. f5 {[%clk 0:00:08.7]} 37...
exf5 {[%clk 0:00:31.2]} 38. gxf5 {[%clk 0:00:08.7]} 38... Re4 {[%clk 0:00:30.7]}
39. e6 {[%clk 0:00:08]} 39... fxe6 {[%clk 0:00:31]} 40. fxe6 {[%clk 0:00:07.8]}
40... Rxe6 {[%clk 0:00:31.9]} 41. Nd3 {[%clk 0:00:07.3]} 41... Re3+ {[%clk
0:00:31.6]} 42. Kg4 {[%clk 0:00:07.4]} 42... Bb6 {[%clk 0:00:31.9]} 43. Kh5
{[%clk 0:00:06.3]} 43... Kg7 {[%clk 0:00:31.9]} 44. Kg4 {[%clk 0:00:05.6]} 44...
Rce8 {[%clk 0:00:31.5]} 45. Rf1 {[%clk 0:00:03.9]} 45... Kg6 {[%clk 0:00:31.5]}
46. Qc2 {[%clk 0:00:02.2]} 46... R8e4+ {[%clk 0:00:29.4]} 0-1